bitfinex/quotes_SOLUSD_20240727
["timestamp","ask_amount","ask_price","bid_price","bid_amount"]
[1722122980128,15.4348,185.55,185.44,20.0]
[1722122980659,15.4348,185.55,185.45,0.5013959]
[1722122981047,15.4348,185.55,185.44,20.0]
[1722122981752,19.7463,185.55,185.44,20.0]
[1722122982858,50.65966408,185.54,185.44,20.0]
[1722122984642,16.78281923,185.55,185.44,20.0]
[1722122984857,21.09431923,185.55,185.44,20.0]
[1722122985963,50.65957439,185.54,185.44,20.0]
[1722122986263,1.34787439,185.54,185.44,20.0]
[1722122987380,15.4348,185.55,185.45,22.0868]
[1722122987664,5.6584896,185.58,185.46,20.0]
[1722122987868,45.0,185.57,185.46,20.0]
[1722122988241,46.34767766,185.57,185.46,20.0]
[1722122988443,45.0,185.57,185.46,45.47]
[1722122988748,45.0,185.57,185.47,0.50112655]
[1722122988945,46.34770084,185.57,185.46,45.47]
[1722122992284,45.0,185.57,185.46,45.97116333]
[1722122992452,45.0,185.57,185.46,45.47]
[1722122992869,16.8131659,185.59,185.47,0.34]
[1722122993068,16.8131659,185.59,185.47,45.34]
[1722122993278,2.14052415,185.59,185.48,20.0]
[1722122993975,2.14052415,185.59,185.47,20.34]
[1722122994185,6.45102415,185.59,185.47,20.34]
[1722122995169,2.14052415,185.59,185.47,20.34]
[1722122995370,0.7930659,185.59,185.49,25.47]
[1722122995570,0.7930659,185.59,185.5,20.50057446]
[1722122995881,0.7930659,185.59,185.51,22.52739703]
[1722122996056,0.7930659,185.59,185.52,20.50022839]
[1722122996884,0.7930659,185.59,185.52,20.0]
[1722122998358,0.7930659,185.59,185.53,0.50022192]
[1722123000360,0.7930659,185.59,185.52,45.47]
[1722123001209,0.7930659,185.59,185.53,0.84011245]
[1722123001373,0.7930659,185.59,185.53,45.34]
[1722123001563,0.7930659,185.59,185.54,20.0]
[1722123002295,0.7930659,185.59,185.53,0.34]
[1722123002296,0.7930659,185.59,185.53,20.34]
[1722123005888,0.7930659,185.59,185.53,20.0]
[1722123010199,0.7930659,185.59,185.54,0.49998714]
[1722123011880,0.7930659,185.59,185.53,20.34]
[1722123012396,0.7930659,185.59,185.53,20.0]
[1722123015481,0.7930659,185.59,185.54,0.34]
[1722123015795,0.7930659,185.59,185.54,0.83970895]
[1722123018303,0.7930659,185.59,185.54,0.34]
[1722123019373,0.7930659,185.59,185.53,20.0]
[1722123020100,0.7930659,185.59,185.54,0.49983975]
[1722123021394,0.7930659,185.59,185.55,25.81]
[1722123021700,0.7930659,185.59,185.56,20.0]
[1722123022000,0.7930659,185.59,185.57,0.17]
[1722123022872,0.7930659,185.59,185.56,20.0]
[1722123023080,0.7930659,185.59,185.57,0.17]
[1722123024193,15.5926,185.67,185.58,25.47]
[1722123024385,15.5926,185.67,185.59,20.34]
[1722123026629,19.463,185.72,185.59,20.34]
[1722123026801,20.80963906,185.72,185.59,20.34]
[1722123027211,20.80963906,185.72,185.6,0.49861836]
[1722123027382,19.463,185.72,185.6,0.49861836]
[1722123027715,4.3078,185.71,185.6,0.49861836]
[1722123027886,4.3078,185.71,185.59,20.34]
[1722123028611,19.463,185.72,185.59,20.34]
[1722123029132,15.1555,185.72,185.61,25.47]
[1722123029403,15.1555,185.72,185.64,25.47]
[1722123029404,1.34631023,185.69,185.64,25.47]
[1722123029606,1.34631023,185.69,185.65,20.0]
[1722123029914,1.34631023,185.69,185.62,20.34]
[1722123030308,15.1555,185.72,185.63,45.0]
[1722123030509,15.1555,185.72,185.64,20.34]
[1722123031215,1.34630419,185.71,185.64,20.0]
[1722123031401,1.34630419,185.71,185.62,20.0]
[1722123031602,1.34630419,185.71,185.63,0.34]
[1722123031910,15.1555,185.72,185.63,0.34]
[1722123037822,1.34642056,185.71,185.63,0.34]
[1722123038016,1.34642056,185.69,185.62,20.0]
[1722123038208,5.6545091,185.71,185.59,22.12995628]
[1722123038403,1.3467091,185.71,185.59,22.12995628]
[1722123038600,15.1555,185.72,185.61,25.47]
[1722123038820,15.1555,185.72,185.62,20.0]
[1722123039529,15.1555,185.72,185.63,0.34]
[1722123040424,16.50191948,185.72,185.63,0.34]
[1722123040998,16.50191948,185.72,185.62,20.0]
[1722123041205,23.41282977,185.7,185.62,20.0]
[1722123041426,23.41282977,185.7,185.58,20.0]
[1722123041717,23.41282977,185.7,185.59,0.34]
[1722123048020,23.41282977,185.7,185.59,45.34]
[1722123048326,23.41282977,185.7,185.6,20.0]
[1722123048327,16.1367,185.69,185.6,20.0]
[1722123048527,1.34667847,185.68,185.59,0.34]
[1722123048734,1.3466784,185.67,185.59,0.34]
[1722123049726,1.34667988,185.68,185.59,0.34]
[1722123049920,1.34667966,185.67,185.59,0.34]
[1722123051013,1.3466787,185.66,185.59,0.34]
[1722123051213,1.34670043,185.68,185.59,0.34]
[1722123051413,1.34670043,185.67,185.59,0.34]
[1722123052537,1.3466998,185.66,185.59,0.34]
[1722123052740,1.34669948,185.68,185.59,0.34]
[1722123052928,1.34669948,185.67,185.59,0.34]
[1722123054035,1.34669874,185.66,185.59,0.34]
[1722123054234,1.34669748,185.68,185.59,0.34]
[1722123055028,16.1367,185.69,185.59,0.34]
[1722123055212,17.48339781,185.69,185.59,0.34]
[1722123058231,16.1367,185.69,185.6,25.96870852]
[1722123058423,16.1367,185.69,185.61,20.34]
[1722123058622,1.34661965,185.68,185.61,20.0]
[1722123059724,7.57412493,185.67,185.59,20.0]
[1722123063264,7.57412493,185.67,185.58,25.97676266]
[1722123063541,7.57412493,185.67,185.59,0.34]
[1722123064832,6.2274,185.67,185.59,0.34]
[1722123066342,6.2274,185.67,185.59,45.34]
[1722123066649,6.2274,185.67,185.6,20.0]
[1722123067221,6.2274,185.67,185.6,45.47]
[1722123067743,16.1367,185.69,185.6,45.47]
[1722123067946,16.1367,185.69,185.61,0.34]
[1722123072345,16.1367,185.69,185.6,45.47]
[1722123072521,1.34661235,185.68,185.6,45.47]
[1722123076847,16.1367,185.69,185.6,45.47]
[1722123080660,16.1367,185.69,185.61,0.34]
[1722123082138,16.1367,185.69,185.61,45.83837935]
[1722123082460,16.1367,185.69,185.62,20.0]
[1722123082659,16.1367,185.69,185.63,0.34]
[1722123086450,16.1367,185.69,185.63,45.34]
[1722123086641,16.1367,185.69,185.64,20.0]
[1722123086850,16.1367,185.69,185.65,0.17]
[1722123087058,16.1367,185.69,185.64,20.0]
[1722123087262,16.1367,185.69,185.63,0.34]
[1722123087432,16.1367,185.69,185.64,0.34]
[1722123087635,16.1367,185.69,185.63,20.0]
[1722123087864,16.1367,185.69,185.64,0.17]
[1722123088043,16.1367,185.69,185.63,20.0]
[1722123088359,16.1367,185.69,185.62,0.34]
[1722123090043,16.1367,185.69,185.61,20.0]
[1722123090244,16.1367,185.69,185.61,0.4984876]
[1722123092342,16.1367,185.69,185.62,0.34]
[1722123092856,16.1367,185.69,185.63,0.49782908]
[1722123093164,16.1367,185.69,185.64,0.34]
[1722123093354,16.1367,185.69,185.64,20.34]
[1722123096053,16.1367,185.69,185.65,0.4978241]
[1722123096254,16.1367,185.69,185.66,0.34]
[1722123097339,16.1367,185.69,185.65,0.34]
[1722123098140,22.06629651,185.7,185.65,0.34]
[1722123098345,22.06629651,185.7,185.65,45.83751466]
[1722123098552,22.06629651,185.7,185.66,20.0]
[1722123098754,22.06629651,185.7,185.67,0.34]
[1722123101959,22.06629651,185.7,185.67,0.83750913]
[1722123102164,22.06629651,185.7,185.68,0.49733384]
[1722123102363,22.06629651,185.7,185.69,0.34]
[1722123102845,22.06629651,185.7,185.67,45.0]
[1722123102846,22.06629651,185.7,185.68,0.34]
[1722123103342,22.06629651,185.7,185.66,25.47]
[1722123103343,22.06629651,185.7,185.69,0.34]
[1722123103540,22.06629651,185.7,185.67,65.34]
[1722123104181,22.06629651,185.7,185.67,65.83733603]
[1722123104470,22.06629651,185.7,185.67,65.34]
[1722123109989,22.06629651,185.7,185.63,7.76946309]
[1722123110182,22.06629651,185.7,185.63,2.13523335]
[1722123110349,22.06629651,185.7,185.63,5.63568431]
[1722123110758,22.06629651,185.7,185.61,0.49775987]
[1722123110972,22.06629651,185.7,185.61,6.13369]
[1722123112158,22.06629651,185.7,185.62,65.34]
[1722123112667,22.06629651,185.7,185.63,0.49774719]
[1722123112867,22.06629651,185.7,185.64,0.34]
[1722123114154,22.06629651,185.7,185.64,65.34]
[1722123117653,22.06629651,185.7,185.64,20.34]
[1722123117861,16.56117136,185.69,185.61,5.63593013]
[1722123118062,16.56117136,185.69,185.55,45.47]
[1722123118456,16.56117136,185.69,185.57,5.63699249]
[1722123118656,6.5459,185.68,185.57,5.63699249]
[1722123118861,15.2148,185.66,185.57,5.63699249]
[1722123119577,16.56159545,185.66,185.55,2.17093733]
[1722123119768,16.56159545,185.66,185.52,25.47]
[1722123119964,16.56159545,185.66,185.54,5.63821865]
[1722123120392,20.87059545,185.66,185.54,5.63821865]
[1722123120567,15.2148,185.62,185.54,5.63821865]
[1722123121377,16.5617737,185.62,185.54,5.63821865]
[1722123121969,19.5253,185.6,185.43,25.47]
[1722123122286,1.34754356,185.59,185.46,25.47]
[1722123122585,1.34754356,185.59,185.46,25.97042724]
[1722123123172,1.34754356,185.59,185.49,25.47]
[1722123123392,15.2148,185.6,185.5,65.34]
[1722123123564,15.2148,185.6,185.52,25.47]
[1722123123767,15.2148,185.6,185.53,65.34]
[1722123130178,5.65767931,185.59,185.53,20.0]
[1722123130374,1.34707931,185.59,185.48,25.47]
[1722123131576,1.34707931,185.59,185.49,45.34]
[1722123132579,1.34707931,185.59,185.5,20.0]
[1722123132774,1.34707931,185.59,185.51,0.34]
[1722123132995,1.34707931,185.59,185.5,20.0]
[1722123133205,5.65767931,185.59,185.49,20.0]
[1722123134000,4.3106,185.59,185.49,20.0]
[1722123134496,1.34748791,185.58,185.49,20.0]
[1722123135296,1.34748771,185.57,185.46,2.14112424]
[1722123135510,15.027,185.56,185.45,25.47]
[1722123136171,15.027,185.56,185.45,25.97094071]
[1722123136585,1.34748738,185.55,185.46,20.0]
[1722123136798,15.027,185.56,185.46,20.0]
[1722123136799,1.34763291,185.54,185.46,20.0]
[1722123136995,6.4605,185.53,185.46,20.0]
[1722123137584,1.34763095,185.52,185.46,20.0]
[1722123138110,6.4605,185.53,185.43,5.6408979]
[1722123138607,6.4605,185.53,185.43,7.78899803]
[1722123139187,6.4605,185.53,185.44,0.67147011]
[1722123139409,16.37482799,185.52,185.43,7.78899803]
[1722123139583,1.34788616,185.51,185.43,7.78899803]
[1722123140687,15.027,185.52,185.43,7.78899803]
[1722123140886,16.37482566,185.52,185.44,20.17]
[1722123142608,1.34782394,185.51,185.44,20.17]
[1722123142801,15.027,185.52,185.44,20.17]
[1722123142995,16.37482428,185.52,185.44,20.17]
[1722123143323,15.027,185.52,185.44,20.17]
[1722123143605,16.37482379,185.52,185.44,20.17]
[1722123143821,15.027,185.52,185.44,20.17]
[1722123144220,15.027,185.52,185.45,25.64]
[1722123144391,15.027,185.52,185.46,20.17]
[1722123144786,15.027,185.52,185.47,45.17]
[1722123145000,15.027,185.52,185.48,20.17]
[1722123145482,15.027,185.52,185.47,0.17]
[1722123145681,15.027,185.52,185.47,0.34]
[1722123146615,15.027,185.52,185.47,45.34]
[1722123146905,15.027,185.52,185.48,20.0]
[1722123148191,15.027,185.52,185.47,0.34]
[1722123162229,1.34758943,185.51,185.46,20.0]
[1722123162399,1.34758943,185.51,185.44,20.0]
[1722123162602,1.34758943,185.51,185.43,7.78922826]
[1722123163926,1.34758943,185.51,185.44,20.0]
[1722123164642,15.7222,185.5,185.43,7.78922826]
[1722123168314,1.34801864,185.49,185.43,7.78922826]
[1722123168624,1.34812103,185.48,185.43,5.64112813]
[1722123168824,1.34812103,185.48,185.35,1.44193841]
[1722123169032,1.34812103,185.48,185.39,5.64253152]
[1722123169324,1.34812103,185.48,185.4,20.17]
[1722123169538,22.3312,185.47,185.4,20.0]
[1722123169710,1.3482358,185.46,185.4,20.0]
[1722123170026,1.3482322,185.45,185.4,20.0]
[1722123171017,1.3482505,185.46,185.4,20.0]
[1722123171217,1.3482504,185.45,185.4,20.0]
[1722123171631,22.3312,185.47,185.4,20.0]
[1722123172216,1.34824846,185.46,185.4,20.0]
[1722123172930,22.3312,185.47,185.4,20.0]
[1722123176034,22.3312,185.47,185.44,4.314]
[1722123176349,22.3312,185.47,185.46,4.3135]
[1722123179448,22.3312,185.47,185.4,20.0]
[1722123179826,1.34817405,185.46,185.4,20.0]
[1722123180041,22.3312,185.47,185.4,20.0]
[1722123180556,1.34816988,185.46,185.4,20.0]
[1722123180721,1.34820853,185.45,185.4,20.0]
[1722123180921,22.3312,185.47,185.4,20.0]
[1722123181844,22.3312,185.47,185.37,20.0]
[1722123182047,22.3312,185.47,185.38,0.34]
[1722123182258,22.3312,185.47,185.39,0.50236759]
[1722123182418,15.7222,185.47,185.4,0.84178235]
[1722123182749,6.0811,185.52,185.4,65.34]
[1722123182750,17.98958402,185.51,185.4,65.34]
[1722123183043,17.98958402,185.51,185.4,65.84149577]
[1722123183544,17.98958402,185.51,185.4,65.34]
[1722123183734,17.98958402,185.51,185.4,65.84149592]
[1722123184055,17.98953768,185.51,185.4,65.84149592]
[1722123184258,17.98953768,185.51,185.4,65.34]
[1722123184432,16.6417,185.51,185.4,65.84148251]
[1722123185145,16.6417,185.51,185.42,25.47]
[1722123185449,16.6417,185.51,185.43,65.84131003]
[1722123186443,16.6417,185.51,185.43,65.34]
[1722123186642,17.98948633,185.51,185.43,65.34]
[1722123186942,16.6417,185.51,185.43,65.34]
[1722123187358,16.6417,185.51,185.43,20.34]
[1722123187547,1.34785077,185.5,185.43,20.34]
[1722123187877,1.34785077,185.5,185.44,20.0]
[1722123188171,16.6417,185.51,185.41,2.09304812]
[1722123188342,16.6417,185.51,185.4,20.50202339]
[1722123188533,16.6417,185.51,185.4,0.50202339]
[1722123188962,16.6417,185.51,185.39,27.6590909]
[1722123189337,1.34800688,185.5,185.39,27.6590909]
[1722123189838,1.34800688,185.5,185.4,65.0]
[1722123190036,16.6417,185.51,185.4,65.84167145]
[1722123190236,1.34784433,185.5,185.4,65.34]
[1722123190461,16.6417,185.51,185.4,65.84158709]
[1722123196349,1.34784481,185.5,185.4,65.34]
[1722123200868,1.34796403,185.5,185.4,20.17]
[1722123201862,16.6417,185.51,185.4,20.17]
[1722123202263,17.98980804,185.51,185.4,20.17]
[1722123203457,16.6417,185.51,185.4,20.67212084]
[1722123203678,16.6417,185.51,185.41,0.17]
[1722123204164,16.6417,185.51,185.41,45.17]
[1722123204363,16.6417,185.51,185.42,20.17]
[1722123205247,16.6417,185.51,185.43,0.17]
[1722123206084,16.6417,185.51,185.43,0.67150976]
[1722123206589,16.6417,185.51,185.43,0.17]
[1722123207476,16.6417,185.51,185.43,0.67151386]
[1722123208862,16.6417,185.51,185.44,0.17]
[1722123209068,16.6417,185.51,185.44,20.17]
[1722123209379,16.6417,185.51,185.45,0.50133027]
[1722123209700,16.6417,185.51,185.44,20.17]
[1722123212671,16.6417,185.51,185.45,0.67126604]
[1722123212868,16.6417,185.51,185.46,0.67106378]
[1722123214203,21.5812,185.56,185.46,0.17]
[1722123214384,21.5812,185.56,185.46,20.17]
[1722123214892,1.34767196,185.55,185.46,20.0]
[1722123215086,21.5812,185.56,185.46,20.0]
[1722123215284,21.5812,185.56,185.45,0.17]
[1722123215490,21.5812,185.56,185.44,45.34]
[1722123215688,21.5812,185.56,185.45,20.50118505]
[1722123215994,21.5812,185.56,185.46,0.34]
[1722123222498,46.34785313,185.55,185.43,8.1018069]
[1722123222696,16.46913773,185.54,185.42,8.1018069]
[1722123222880,49.312,185.53,185.41,8.1018069]
[1722123223074,1.34807139,185.52,185.41,8.1018069]
[1722123223275,1.34805295,185.51,185.41,8.1018069]
[1722123223475,15.1212,185.54,185.41,8.1018069]
[1722123223875,15.1212,185.54,185.42,45.34]
[1722123224079,16.46905305,185.54,185.42,45.34]
[1722123224405,16.46905305,185.54,185.42,53.4418069]
[1722123224600,16.46905305,185.54,185.43,20.0]
[1722123225613,45.0,185.53,185.43,20.0]
[1722123225779,21.4153,185.51,185.42,20.0]
[1722123225979,1.34803736,185.5,185.42,20.0]
[1722123227274,46.34803736,185.5,185.42,20.0]
[1722123227486,15.1212,185.49,185.4,13.74363212]
[1722123227799,1.34825358,185.48,185.4,13.74363212]
[1722123227998,1.34825358,185.48,185.4,5.64065783]
[1722123228411,46.34825358,185.48,185.4,5.64065783]
[1722123232206,16.46957641,185.49,185.4,5.64065783]
[1722123232801,15.1212,185.49,185.4,5.64065783]
[1722123232982,1.34819981,185.48,185.4,5.64065783]
[1722123234583,15.1212,185.49,185.4,5.64065783]
[1722123234885,1.34819827,185.48,185.4,5.64065783]
[1722123235085,15.1212,185.49,185.4,5.64065783]
[1722123235692,1.34819813,185.48,185.4,5.64065783]
[1722123236008,1.34819985,185.48,185.4,5.64065783]
[1722123236184,46.34819985,185.48,185.4,5.64065783]
[1722123236798,46.34819985,185.48,185.42,4.3143]
[1722123237699,46.34819985,185.48,185.43,4.3142]
[1722123239989,45.0,185.48,185.43,4.3142]
[1722123240213,46.34831776,185.48,185.43,4.3142]
[1722123240983,46.34831776,185.48,185.4,5.64065783]
[1722123242487,45.0,185.48,185.4,5.64065783]
[1722123242899,46.34837275,185.48,185.4,5.64065783]
[1722123244390,45.0,185.48,185.4,5.64065783]
[1722123244589,46.34837238,185.48,185.4,5.64065783]
[1722123246512,45.0,185.48,185.4,5.64065783]
[1722123247120,16.46958667,185.49,185.4,5.64065783]
[1722123247332,15.1212,185.49,185.41,20.34]
[1722123248503,100.0,185.45,185.41,20.34]
[1722123251416,100.0,185.45,185.41,20.0]
[1722123252831,1.34821297,185.44,185.41,20.0]
[1722123253001,100.0,185.45,185.41,20.0]
[1722123253205,1.34830291,185.44,185.41,20.0]
[1722123253507,1.34830291,185.44,185.4,5.64065783]
[1722123253821,100.0,185.45,185.4,5.64065783]
[1722123254703,1.34829331,185.44,185.4,5.64065783]
[1722123254906,1.34829331,185.44,185.41,20.0]
[1722123256124,100.0,185.45,185.41,20.0]
[1722123264909,100.0,185.45,185.42,0.17]
[1722123265133,100.0,185.45,185.42,0.84187965]
[1722123266238,100.0,185.45,185.42,0.34]
[1722123266528,90.59600001,185.45,185.42,45.34]
[1722123266836,90.59600001,185.45,185.43,20.0]
[1722123267030,90.59600001,185.45,185.44,0.34]
[1722123269018,90.59600001,185.45,185.41,13.74315966]
[1722123269217,90.59600001,185.45,185.41,5.64097159]
[1722123269834,90.59600001,185.45,185.39,8.10218807]
[1722123270011,90.59600001,185.45,185.39,13.74425141]
[1722123270702,90.59600001,185.45,185.4,20.0]
[1722123273016,90.59600001,185.45,185.41,0.50233399]
[1722123274116,90.59600001,185.45,185.4,20.0]
[1722123274815,90.59600001,185.45,185.41,0.50209826]
[1722123275023,90.59600001,185.45,185.4,28.10343649]
[1722123275521,90.59600001,185.45,185.41,0.34]
[1722123276230,90.59600001,185.45,185.41,26.31195112]
[1722123276430,90.59600001,185.45,185.42,73.10343649]
[1722123276621,90.59600001,185.45,185.43,8.44343649]
[1722123276821,90.59600001,185.45,185.44,20.0]
[1722123277038,90.59600001,185.45,185.44,20.34]
[1722123279523,90.59600001,185.45,185.44,0.34]
[1722123282021,90.59600001,185.45,185.44,0.17]
[1722123282222,90.59600001,185.45,185.43,20.0]
[1722123282930,90.59600001,185.45,185.44,0.17]
[1722123286918,90.59600001,185.45,185.44,20.17]
[1722123287441,90.59600001,185.45,185.44,20.34]
[1722123288233,90.59600001,185.45,185.44,46.31171437]
[1722123288234,33.69893706,185.45,185.44,46.31171437]
[1722123288439,28.39553706,185.45,185.44,91.31171437]
[1722123288643,26.77521621,185.45,185.44,90.81]
[1722123288939,25.15489536,185.45,185.44,90.81]
[1722123289153,25.15489536,185.45,185.44,91.31140963]
[1722123289319,23.53492453,185.45,185.44,65.84140963]
[1722123289518,23.53492453,185.45,185.44,90.81]
[1722123290324,23.53492453,185.45,185.44,65.34]
[1722123291316,23.53492453,185.45,185.44,20.34]
[1722123291520,23.53492453,185.45,185.44,0.34]
[1722123291947,23.53492453,185.45,185.4,5.63698619]
[1722123294752,23.53492453,185.45,185.41,0.34]
[1722123294922,23.53492453,185.45,185.41,20.34]
[1722123295546,23.53492453,185.45,185.41,20.0]
[1722123296128,1.34823526,185.44,185.4,5.63698619]
[1722123296322,15.6065,185.43,185.4,5.63698619]
[1722123298931,15.6065,185.43,185.37,2.16731039]
[1722123299136,15.6065,185.43,185.38,0.34]
[1722123299447,23.53492453,185.45,185.38,20.34]
[1722123299755,23.53492453,185.45,185.39,0.50257168]
[1722123300257,23.53492453,185.45,185.38,45.81]
[1722123300563,23.53492453,185.45,185.39,0.17]
[1722123301453,23.53492453,185.45,185.41,25.47]
[1722123301644,23.53492453,185.45,185.42,20.0]
[1722123302825,23.53492453,185.45,185.4,20.0]
[1722123303025,23.53492453,185.45,185.37,5.63493706]
[1722123303026,1.34818819,185.44,185.37,5.63493706]
[1722123304427,21.9023,185.43,185.37,5.63493706]
[1722123304656,1.34852994,185.42,185.37,5.63493706]
[1722123305525,1.34852994,185.42,185.32,25.47]
[1722123305733,21.9023,185.43,185.32,25.47]
[1722123306133,21.9023,185.43,185.33,0.34]
[1722123306338,1.34853234,185.42,185.33,45.34]
[1722123306565,1.34853234,185.42,185.34,20.0]
[1722123306752,21.9023,185.43,185.35,0.34]
[1722123307138,1.34850223,185.42,185.34,20.0]
[1722123307340,1.34850223,185.42,185.32,20.0]
[1722123307540,21.9023,185.43,185.32,20.0]
[1722123307971,21.9023,185.43,185.33,70.97314521]
[1722123308136,21.9023,185.43,185.33,70.47]
[1722123308344,1.34852505,185.42,185.34,20.0]
[1722123308670,21.9023,185.43,185.34,20.0]
[1722123308856,21.9023,185.43,185.35,0.17]
[1722123309044,21.9023,185.43,185.34,20.0]
[1722123310669,23.25085835,185.43,185.34,20.0]
[1722123310964,1.34858387,185.42,185.34,20.0]
[1722123312568,21.9023,185.43,185.34,20.0]
[1722123313841,23.25088408,185.43,185.34,20.0]
[1722123314944,1.3485829,185.42,185.34,20.0]
[1722123315554,1.3485829,185.42,185.33,0.17]
[1722123315771,1.3485829,185.42,185.33,0.34]
[1722123316343,1.3485829,185.42,185.32,45.34]
[1722123316541,1.3485829,185.42,185.33,20.0]
[1722123317755,1.3485829,185.42,185.32,20.0]
[1722123318173,1.3485829,185.42,185.31,20.0]
[1722123318756,23.25104405,185.43,185.31,20.0]
[1722123318963,21.9023,185.43,185.32,0.50359127]
[1722123319159,21.9023,185.43,185.33,0.34]
[1722123319471,21.9023,185.43,185.33,20.84330881]
[1722123319786,1.34863566,185.42,185.33,20.34]
[1722123320272,1.34863152,185.42,185.33,20.34]
[1722123320462,21.9023,185.43,185.34,45.0]
[1722123320666,21.9023,185.43,185.35,20.34]
[1722123320963,1.34849451,185.42,185.35,20.34]
[1722123323374,21.9023,185.43,185.35,20.34]
[1722123325553,1.34849607,185.42,185.35,20.0]
[1722123325779,1.34849607,185.42,185.31,20.0]
[1722123325954,1.34849607,185.42,185.32,45.34]
[1722123326162,1.34849607,185.42,185.33,20.0]
[1722123327681,1.34849607,185.42,185.3,33.18494178]
[1722123328374,1.34849607,185.42,185.3,7.71494178]
[1722123329385,1.34849607,185.42,185.31,20.34]
[1722123330070,1.34849607,185.42,185.31,0.34]
[1722123330247,1.34849607,185.42,185.31,20.17]
[1722123330448,1.34849607,185.42,185.31,20.0]
[1722123330449,46.34849607,185.42,185.31,20.0]
[1722123331655,15.8543,185.41,185.31,20.0]
[1722123331855,1.34883123,185.4,185.31,20.0]
[1722123332057,1.34883123,185.39,185.31,20.0]
[1722123332552,1.34883123,185.39,185.27,25.47]
[1722123332553,1.34883123,185.39,185.27,31.09523926]
[1722123332874,1.34883123,185.39,185.28,45.34]
[1722123333255,1.34883123,185.39,185.28,0.34]
[1722123333784,1.34883123,185.39,185.28,20.34]
[1722123335675,6.6311,185.37,185.28,20.34]
[1722123335879,1.34899873,185.36,185.28,20.0]
[1722123336082,6.6311,185.37,185.28,20.0]
[1722123336083,1.34915747,185.35,185.28,20.0]
[1722123336277,15.0682,185.34,185.23,25.47]
[1722123336586,15.0682,185.34,185.24,0.50519922]
[1722123337980,15.0682,185.34,185.21,5.62794545]
[1722123337981,6.6311,185.32,185.21,5.62794545]
[1722123338278,15.0682,185.3,185.21,5.62794545]
[1722123338582,1.34957484,185.29,185.16,24.05274674]
[1722123338758,1.34957484,185.29,185.17,25.47]
[1722123338959,1.34957484,185.29,185.17,31.09874308]
[1722123339162,15.0682,185.3,185.2,25.47]
[1722123339404,15.0682,185.3,185.21,0.50498267]
[1722123339887,15.0682,185.3,185.22,0.34]
[1722123340364,15.0682,185.3,185.23,25.47]
[1722123340572,15.0682,185.3,185.24,20.34]
[1722123341071,15.0682,185.3,185.24,20.84483719]
[1722123341277,15.0682,185.3,185.25,45.0]
[1722123341584,21.6993,185.39,185.26,20.84464498]
[1722123341766,19.3837,185.38,185.26,20.34]
[1722123341961,1.3491518,185.37,185.26,20.34]
[1722123342374,20.73283254,185.38,185.26,20.34]
[1722123342679,16.41733254,185.38,185.26,20.34]
[1722123343074,16.41733254,185.38,185.26,20.0]
[1722123343275,15.0682,185.36,185.24,20.0]
[1722123343489,1.34925717,185.35,185.24,20.0]
[1722123344394,15.0682,185.34,185.24,20.0]
[1722123346174,21.6993,185.32,185.21,2.18450572]
[1722123346384,1.34957795,185.31,185.17,31.09874308]
[1722123347389,15.0682,185.3,185.18,0.50569241]
[1722123347689,15.0682,185.3,185.18,20.50569241]
[1722123347990,15.0682,185.3,185.19,45.0]
[1722123348168,15.0682,185.3,185.2,20.0]
[1722123348785,1.34958666,185.29,185.17,33.21004641]
[1722123349087,1.34958666,185.29,185.18,45.0]
[1722123349261,1.34958666,185.29,185.19,0.34]
[1722123349469,1.34958666,185.29,185.18,0.34]
[1722123350105,1.34958666,185.29,185.18,20.34]
[1722123350590,15.0682,185.3,185.18,20.34]